bitfinex/quotes_ETHUSD_20240610
["timestamp","ask_amount","ask_price","bid_price","bid_amount"]
[1718024582080,12.82872348,3673.0,3672.3,10.00305]
[1718024582288,12.02772348,3673.0,3672.3,2.72305]
[1718024582676,12.02772348,3673.0,3672.5,2.72289]
[1718024583685,0.801,3672.6,3672.2,2.7231]
[1718024584006,8.24983846,3672.5,3672.2,2.7231]
[1718024591200,2.4554,3672.4,3672.2,2.7231]
[1718024591400,8.1632,3672.3,3672.2,2.7231]
[1718024591792,8.24664184,3672.3,3672.2,2.7231]
[1718024598332,8.24664184,3672.3,3672.2,6.14901]
[1718024599042,8.24664184,3672.3,3672.2,6.21200365]
[1718024599893,8.1632,3672.3,3672.2,6.21200365]
[1718024600122,8.1632,3672.3,3672.2,13.85732365]
[1718024600290,8.24684363,3672.3,3672.2,14.65832365]
[1718024600904,8.24684363,3672.3,3672.2,15.20832365]
[1718024601298,8.1632,3672.3,3672.2,15.20832365]
[1718024602014,8.24712948,3672.3,3672.2,15.20832365]
[1718024606613,8.24712948,3672.3,3672.2,16.06246692]
[1718024608331,9.48e-06,3672.3,3672.2,15.20832365]
[1718024608497,9.24e-06,3672.3,3672.2,15.20832365]
[1718024608837,2.4567,3673.9,3673.5,2.72216]
[1718024609331,0.08156332,3673.8,3673.5,2.72216]
[1718024609553,2.4567,3673.9,3673.5,2.72216]
[1718024609851,0.08156332,3673.8,3673.5,2.72216]
[1718024610688,8.1663,3673.7,3673.5,2.72216]
[1718024611122,0.08165856,3673.6,3673.5,2.72216]
[1718024611303,8.24795856,3673.6,3673.5,2.72216]
[1718024613217,9.31842442,3673.6,3673.2,2.72236]
[1718024613560,9.31842442,3673.6,3672.9,7.28]
[1718024613561,2.4241,3673.5,3672.9,7.28]
[1718024613735,11.3914,3673.4,3672.9,7.28]
[1718024613918,2.4241,3673.3,3672.9,7.28]
[1718024614120,8.1663,3673.2,3672.9,7.28]
[1718024614321,2.4241,3673.1,3672.3,10.00306]
[1718024614523,8.1663,3673.0,3672.3,3.52406]
[1718024614763,9.58585522,3673.0,3672.3,3.52406]
[1718024615056,0.08142884,3672.9,3672.3,3.52406]
[1718024615364,8.1663,3672.8,3672.3,3.52406]
[1718024615665,8.1663,3672.8,3672.3,2.72306]
[1718024615963,0.08142884,3672.7,3672.3,2.72306]
[1718024616135,8.1663,3672.6,3672.3,2.72306]
[1718024616547,0.07629858,3672.5,3672.3,2.72306]
[1718024616760,8.1663,3672.4,3672.3,2.72306]
[1718024617123,8.24180453,3672.4,3672.3,2.72306]
[1718024617462,8.24180453,3672.4,3672.2,0.06299365]
[1718024617819,9.37790498,3672.4,3672.2,0.06299365]
[1718024620729,8.24180453,3672.4,3672.2,0.06299365]
[1718024634799,8.23908144,3672.4,3672.2,0.06299365]
[1718024650021,3.1308,3672.3,3671.8,2.72338]
[1718024650315,8.23856506,3672.2,3671.8,2.72338]
[1718024656982,8.23856506,3672.2,3672.1,2.72323]
[1718024657419,8.23856506,3672.2,3672.1,7.92556]
[1718024657584,8.16357691,3672.2,3672.1,7.92556]
[1718024658105,8.2358662,3672.2,3672.1,7.98855537]
[1718024661495,8.16357691,3672.2,3672.1,7.98855537]
[1718024661783,8.23614721,3672.2,3672.1,9.3063995]
[1718024663993,8.23614721,3672.2,3672.1,10.1073995]
[1718024664299,8.16357691,3672.2,3672.1,10.1073995]
[1718024664501,8.23673162,3672.2,3672.1,10.1073995]
[1718024664716,8.23673162,3672.2,3672.1,4.1040695]
[1718024664894,8.23673162,3672.2,3672.1,3.58722537]
[1718024667321,8.16357691,3672.2,3672.1,3.58722537]
[1718024667509,8.23668667,3672.2,3672.1,3.58722537]
[1718024668429,10.59998667,3672.2,3672.1,2.78622537]
[1718024668596,11.65998534,3672.2,3672.1,0.06299537]
[1718024696892,12.46098534,3672.2,3672.1,0.06299537]
[1718024697506,12.46098534,3672.2,3671.7,2.72353]
[1718024703426,0.801,3672.0,3671.7,2.72353]
[1718024703732,8.23486178,3671.9,3671.7,2.72353]
[1718024712810,9.25232759,3671.9,3671.7,2.72353]
[1718024714266,8.23486178,3671.9,3671.7,2.72353]
[1718024720900,2.332,3671.8,3671.7,2.72353]
[1718024721077,10.56499904,3671.8,3671.7,2.72353]
[1718024721795,10.56499904,3671.8,3671.5,2.72367]
[1718024722315,11.36599904,3671.8,3671.5,2.72367]
[1718024723203,12.77492894,3671.8,3671.5,2.72367]
[1718024724270,12.77492894,3671.8,3671.2,10.00383]
[1718024724687,12.77492894,3671.8,3671.2,2.72383]
[1718024728827,0.801,3671.6,3671.2,2.72383]
[1718024729034,8.16357691,3671.5,3671.2,2.72383]
[1718024729241,8.23285268,3671.5,3671.2,2.72383]
[1718024731717,8.28375709,3671.5,3671.2,2.72383]
[1718024734330,0.801,3671.3,3670.9,2.7241]
[1718024734640,0.801,3671.3,3670.7,7.28]
[1718024734641,10.65119946,3671.2,3670.7,10.00427]
[1718024736419,10.65119946,3671.2,3670.3,0.801]
[1718024736619,10.65119946,3671.2,3670.0,7.28]
[1718024736620,0.801,3670.5,3670.0,7.28]
[1718024736829,8.16357691,3670.4,3670.1,2.72466]
[1718024737069,8.28316028,3670.4,3670.3,2.72457]
[1718024738569,8.28316028,3670.4,3670.3,3.52557]
[1718024739170,8.16357691,3670.4,3670.3,3.52557]
[1718024739529,8.2828562,3670.4,3670.3,3.52557]
[1718024741191,8.2828562,3670.4,3670.3,2.72457]
[1718024746085,8.2828562,3670.4,3670.3,10.85294]
[1718024746255,8.2828562,3670.4,3670.3,8.12837]
[1718024746447,8.16357691,3670.4,3670.3,8.92937]
[1718024746775,8.27883324,3670.4,3670.3,8.92937]
[1718024748008,8.27883324,3670.4,3670.3,10.094781]
[1718024749854,8.27883324,3670.4,3670.3,12.819351]
[1718024750101,8.27883324,3670.4,3670.3,9.293781]
[1718024750409,8.27883324,3670.4,3670.3,10.094781]
[1718024752061,8.27883324,3670.4,3670.3,12.819351]
[1718024753060,8.16357691,3670.4,3670.3,12.819351]
[1718024753261,6.91e-06,3670.4,3670.3,15.543921]
[1718024753462,3.4e-06,3670.4,3670.3,15.60694726]
[1718024753662,3.4e-06,3670.4,3670.3,16.46138657]
[1718024753886,3.4e-06,3670.4,3670.3,15.89952602]
[1718024754104,3.4e-06,3670.4,3670.3,15.89951745]
[1718024754405,3.4e-06,3670.4,3670.3,20.17408745]
[1718024754603,3.4e-06,3670.4,3670.3,21.91487642]
[1718024754968,2.4545,3672.2,3672.0,2.72323]
[1718024755403,0.1123872,3672.1,3672.0,2.72323]
[1718024755562,2.4545,3672.2,3672.0,2.72323]
[1718024755997,8.1697,3672.1,3672.0,2.72323]
[1718024756498,8.2820872,3672.1,3672.0,2.72323]
[1718024760702,9.35574592,3672.1,3671.7,2.72349]
[1718024760866,2.2502,3671.7,3671.3,10.00377]
[1718024761067,8.1697,3671.6,3671.3,10.00377]
[1718024761472,0.11248307,3671.5,3671.3,10.00377]
[1718024761679,8.1697,3671.4,3671.3,7.28]
[1718024761881,8.1697,3671.4,3671.0,2.72401]
[1718024762094,8.28205334,3671.4,3671.1,3.0]
[1718024762278,8.28205334,3671.4,3671.0,2.72401]
[1718024762486,9.52871251,3671.4,3671.0,2.72401]
[1718024762670,2.2502,3671.3,3671.0,2.72401]
[1718024762874,8.1697,3671.2,3671.0,2.72401]
[1718024763392,0.11223488,3671.1,3671.0,2.72401]
[1718024763565,8.28193488,3671.1,3671.0,2.72401]
[1718024766980,8.28193488,3671.1,3670.6,5.72429]
[1718024766981,9.53991428,3671.1,3670.6,5.72429]
[1718024767712,2.3733,3671.0,3670.6,2.72429]
[1718024767909,8.1697,3670.9,3670.6,2.72429]
[1718024768089,8.28137642,3670.9,3670.6,2.72429]
[1718024771011,9.552742,3670.9,3670.3,0.06302626]
[1718024771312,9.552742,3670.9,3670.3,2.78755626]
[1718024771516,9.552742,3670.9,3670.4,3.0]
[1718024771718,9.552742,3670.9,3670.3,2.78755626]
[1718024775124,8.28137642,3670.9,3670.5,2.72438]
[1718024775829,8.28137642,3670.9,3670.2,5.72459]
[1718024776021,8.28137642,3670.9,3670.2,2.72459]
[1718024776185,8.1697,3670.9,3670.2,2.72459]
[1718024776383,0.11086168,3670.8,3670.2,2.72459]
[1718024776606,8.1697,3670.7,3670.2,2.72459]
[1718024776832,8.1697,3670.7,3670.2,1.080559]
[1718024776986,8.1697,3670.7,3670.6,0.801]
[1718024780901,8.1697,3670.7,3670.6,3.1034]
[1718024781045,8.1697,3670.7,3670.6,8.82775]
[1718024781222,8.1697,3670.7,3670.6,11.5521]
[1718024781420,8.1697,3670.7,3670.6,12.14182313]
[1718024781631,8.1697,3670.7,3670.6,14.86617313]
[1718024781809,8.1697,3670.7,3670.6,12.14182313]
[1718024786414,8.1697,3670.7,3670.6,9.03842313]
[1718024786631,8.1697,3670.7,3670.6,9.83942313]
[1718024792225,8.1697,3670.7,3670.6,9.2497]
[1718024793171,8.1697,3670.7,3670.6,5.72435]
[1718024793334,8.1697,3670.7,3670.6,6.52535]
[1718024794461,8.1697,3670.7,3670.6,5.72435]
[1718024794764,8.1697,3670.7,3670.6,6.52535]
[1718024795968,8.1697,3670.7,3670.6,9.2497]
[1718024796259,8.1697,3670.7,3670.6,10.44712]
[1718024797863,8.1697,3670.7,3670.6,9.64612]
[1718024798023,8.1697,3670.7,3670.6,10.44712]
[1718024801086,8.1697,3670.7,3670.6,16.17717]
[1718024801319,3.172,3672.0,3671.9,2.72338]
[1718024801589,3.172,3672.6,3672.3,2.72302]
[1718024801960,8.1689,3672.5,3672.3,2.72302]
[1718024802166,1.20689,3672.4,3672.3,2.72302]
[1718024802371,9.37579,3672.4,3672.3,2.72302]
[1718024804302,9.37579,3672.4,3672.0,2.72325]
[1718024804511,3.0067,3672.3,3672.0,2.72325]
[1718024804658,8.1689,3672.2,3672.0,2.72325]
[1718024804852,8.73246004,3672.2,3672.0,2.72325]
[1718024806655,8.73246004,3672.2,3671.7,2.72348]
[1718024808894,3.8915,3672.1,3671.4,2.72371]
[1718024809219,11.45564004,3672.2,3671.4,2.72371]
[1718024809220,3.0905,3671.9,3671.4,2.72371]
[1718024809352,8.1689,3671.8,3671.4,2.72371]
[1718024809552,8.1689,3671.8,3671.2,7.28]
[1718024809752,8.1689,3671.8,3671.3,3.0]
[1718024809983,8.1689,3671.8,3671.3,5.72381]
[1718024811824,9.01451495,3671.8,3671.3,5.72381]
[1718024812242,3.2153,3671.7,3671.3,3.0]
[1718024812414,8.1689,3671.6,3671.3,3.0]
[1718024813303,8.1689,3671.6,3671.1,3.0]
[1718024813506,9.7443295,3671.6,3671.2,2.72389]
[1718024813822,9.7443295,3671.6,3671.3,3.0]
[1718024814423,8.1689,3671.6,3671.3,3.0]
[1718024815037,0.11145416,3671.5,3671.3,3.0]
[1718024815351,8.1689,3671.4,3671.3,3.0]
[1718024815829,8.28035416,3671.4,3671.3,3.0]
[1718024816049,8.28035416,3671.4,3671.2,2.72389]
[1718024818583,3.2408,3671.3,3670.9,2.72406]
[1718024818878,8.280388,3671.2,3670.9,2.72406]
[1718024823450,8.280388,3671.2,3670.9,3.52506]
[1718024825376,8.280388,3671.2,3671.1,0.801]
[1718024826274,8.1689,3671.2,3671.1,0.801]
[1718024826478,8.27767512,3671.2,3671.1,1.795816]
[1718024830576,8.27767512,3671.2,3671.1,0.994816]
[1718024830780,8.27767512,3671.2,3671.1,1.795816]
[1718024831536,8.27767512,3671.2,3671.1,5.245216]
[1718024831699,8.27767512,3671.2,3671.1,8.245216]
[1718024833806,8.27767512,3671.2,3671.1,10.969186]
[1718024834007,8.27767512,3671.2,3671.1,13.693156]
[1718024834805,8.1689,3671.2,3671.1,16.417126]
[1718024835208,8.27441617,3671.2,3671.1,16.417126]
[1718024835598,8.27441617,3671.2,3671.1,17.27191647]
[1718024836222,8.27441617,3671.2,3671.1,16.417126]
[1718024836919,8.27441617,3671.2,3671.1,17.27191647]
[1718024837125,8.27441617,3671.2,3671.1,17.82191647]
[1718024838937,8.27441617,3671.2,3671.1,17.02091647]
[1718024839141,8.27441617,3671.2,3671.1,17.82191647]
[1718024845472,8.27441617,3671.2,3671.1,13.02151647]
[1718024845664,8.27441617,3671.2,3671.1,10.10373047]
[1718024845833,8.27441617,3671.2,3671.1,9.24894]
[1718024853295,8.27441617,3671.2,3671.1,6.52497]
[1718024856328,8.27441617,3671.2,3671.1,5.72397]
[1718024856496,8.27441617,3671.2,3671.1,6.52497]
[1718024856831,8.27441617,3671.2,3671.1,2.72397]
[1718024858253,8.27441617,3671.2,3671.1,6.348886]
[1718024858801,8.27441617,3671.2,3671.1,9.072856]
[1718024859234,8.27441617,3671.2,3671.1,12.346826]
[1718024859235,8.1689,3671.2,3671.1,12.346826]
[1718024859629,7.29874601,3671.2,3671.1,13.77285933]
[1718024860239,7.19330339,3671.2,3671.1,13.77285933]
[1718024860626,7.29911937,3671.2,3671.1,13.77285933]
[1718024862051,7.29911937,3671.2,3671.1,13.147826]
[1718024862429,7.19330339,3671.2,3671.1,13.147826]
[1718024862626,7.19330339,3671.2,3671.1,13.48749092]
[1718024862821,7.29922684,3671.2,3671.1,14.28849092]
[1718024863025,7.19330339,3671.2,3671.1,14.28849092]
[1718024864250,7.19330339,3671.2,3671.1,13.147826]
[1718024864956,7.19330339,3671.2,3671.1,14.268826]
[1718024865249,7.19330339,3671.2,3671.1,15.69485933]
[1718024867863,7.28,3673.6,3672.4,2.72294]
[1718024867864,6.16241,3673.5,3672.4,2.72294]
[1718024868162,3.53899092,3673.4,3672.0,10.28]
[1718024868328,3.4402,3673.2,3672.1,0.624916]
[1718024868718,8.1685,3673.1,3672.2,0.06299365]
[1718024868954,0.09879092,3673.0,3672.2,0.06299365]
[1718024869251,0.09879092,3673.0,3672.2,1.10835978]
[1718024869452,0.09879092,3673.0,3672.8,2.72264]
[1718024876590,0.09879092,3673.0,3672.9,3.0]
[1718024887782,3.56799092,3673.0,3672.9,3.0]
[1718024889171,11.73649092,3673.0,3672.9,3.0]
[1718024890896,12.99024001,3673.0,3672.9,3.0]
[1718024893074,13.79124001,3673.0,3672.9,3.0]
[1718024893277,13.79237682,3673.0,3672.9,3.0]
[1718024896016,12.53862773,3673.0,3672.9,3.0]
[1718024897020,12.53862773,3673.0,3672.6,3.0]
[1718024897191,11.73762773,3673.0,3672.9,3.0]
[1718024897381,12.53862773,3673.0,3672.9,3.0]
[1718024897584,13.7924905,3673.0,3672.6,3.0]
[1718024897786,0.801,3672.8,3672.6,3.0]
[1718024898005,8.2675283,3672.7,3672.6,3.0]
[1718024911235,9.0685283,3672.7,3672.6,3.0]
[1718024914018,8.2675283,3672.7,3672.6,3.0]
[1718024916553,10.32381113,3672.7,3672.2,2.78608365]
[1718024916846,10.32381113,3672.7,3672.3,3.0]
[1718024918847,0.801,3672.5,3672.3,3.0]
[1718024919069,8.1685,3672.4,3672.3,3.0]
[1718024919420,8.26752829,3672.4,3672.3,3.0]
[1718024920158,12.26002829,3672.4,3672.3,3.0]
[1718024927979,8.26752829,3672.4,3672.3,3.0]
[1718024928564,8.26752829,3672.4,3672.3,3.95319837]
[1718024929044,8.26752829,3672.4,3672.3,7.60169837]
[1718024929250,8.1685,3672.4,3672.3,7.60169837]
[1718024929685,8.26731911,3672.4,3672.3,7.60169837]
[1718024936879,8.26731911,3672.4,3672.3,3.95319837]
[1718024937240,8.26731911,3672.4,3672.3,3.0]
[1718024950155,8.26731911,3672.4,3672.3,2.972]
[1718024951964,8.26731911,3672.4,3672.3,3.773]
[1718024952168,8.1685,3672.4,3672.3,3.773]
[1718024952379,8.26480921,3672.4,3672.3,4.62832548]
[1718024954578,8.26480921,3672.4,3672.3,3.82732548]
[1718024954780,8.1685,3672.4,3672.3,3.82732548]
[1718024954981,8.2652394,3672.4,3672.3,3.82732548]
[1718024955559,8.2652394,3672.4,3672.3,2.972]
[1718024962771,8.1685,3672.4,3672.3,2.972]
[1718024962971,8.2650571,3672.4,3672.3,2.972]
[1718024964478,8.2650571,3672.4,3672.3,3.773]
[1718024964665,8.2650571,3672.4,3672.3,4.90079431]
[1718024965429,8.2650571,3672.4,3672.3,8.87179431]
[1718024965727,8.2650571,3672.4,3672.3,9.16423826]
[1718024965872,8.2650571,3672.4,3672.3,10.30467223]
[1718024966914,8.2650571,3672.4,3672.3,10.30466963]
[1718024970915,8.1685,3672.4,3672.3,10.30466963]
[1718024971082,8.1685,3672.4,3672.3,9.16423566]
[1718024971283,8.26532314,3672.4,3672.3,9.16423566]
[1718024971483,8.1685,3672.4,3672.3,10.59125228]
[1718024971793,8.26532314,3672.4,3672.3,9.16423566]
[1718024973821,8.26532314,3672.4,3672.3,5.74323566]
[1718024974119,7.6285,3672.4,3672.3,5.74323566]
[1718024974423,7.6285,3672.4,3672.3,9.74463566]
[1718024974637,7.72246666,3672.4,3672.3,9.74463566]
[1718024974786,3.7729,3673.8,3672.7,6.72415]
[1718024974991,3.7729,3673.8,3673.2,0.801]
[1718024975928,3.7729,3673.8,3673.1,1.65694593]
[1718024977203,3.7729,3673.8,3673.2,0.0629765]
[1718024977417,3.7729,3673.8,3673.5,2.72215]
[1718024977626,3.7729,3673.8,3673.6,3.0]
[1718024987416,0.09418166,3673.7,3673.6,3.0]
[1718024988243,3.7729,3673.8,3673.6,3.0]
[1718024988451,0.09418166,3673.7,3673.6,3.0]
[1718024988914,3.7729,3673.8,3673.6,3.0]
[1718024989625,3.7729,3673.8,3673.7,2.72205]
[1718025000257,4.23029,3673.8,3673.6,3.0]
[1718025000466,0.09443628,3673.7,3673.6,3.0]
[1718025000669,3.94973628,3673.7,3673.6,3.0]
[1718025001648,0.09443628,3673.7,3673.6,3.0]
[1718025001973,3.6132,3674.0,3673.7,2.72203]
[1718025002127,4.4142,3674.2,3673.9,2.72185]
[1718025002570,0.0925655,3674.1,3673.9,2.72185]
[1718025003475,0.8935655,3674.1,3673.9,2.72185]
[1718025003699,0.0925655,3674.1,3673.9,2.72185]
[1718025003835,0.801,3674.0,3673.9,2.72185]
[1718025004168,0.89258302,3674.0,3673.9,2.72185]
[1718025004543,0.09158302,3674.0,3673.9,2.72185]
[1718025004744,0.89258302,3674.0,3673.9,2.72185]
[1718025004944,4.2894,3675.1,3674.3,2.72155]
[1718025005129,4.2894,3674.5,3674.3,2.72155]
[1718025005553,8.1646,3674.4,3674.3,2.72155]
[1718025007068,8.1366,3674.4,3674.3,2.72155]
[1718025007269,8.9376,3674.4,3674.3,2.72155]
[1718025007775,8.1366,3674.4,3674.3,2.72155]
[1718025010168,8.22530554,3674.4,3674.3,2.72155]
[1718025024087,8.22530554,3674.4,3674.3,5.44315]
[1718025031521,8.25334098,3674.4,3674.3,5.44315]
[1718025032208,9.8e-07,3674.4,3674.3,16.08245]
[1718025032414,0.10531495,3674.4,3674.3,16.08245]
[1718025032725,4.0858,3676.3,3675.6,2.7206]
[1718025032869,2.72005,3676.4,3675.6,2.7206]
[1718025032870,4.0858,3675.7,3675.6,2.7206]
[1718025033282,4.18760461,3675.7,3675.6,2.7206]
[1718025033487,4.98860461,3675.7,3675.6,2.7206]
[1718025040312,4.98860461,3675.7,3675.1,7.28]
[1718025040313,4.98860461,3675.7,3675.3,2.72081]
[1718025040617,4.6246,3675.4,3675.3,2.72081]
[1718025041018,4.72681371,3675.4,3675.3,2.72081]
[1718025042211,4.72681371,3675.4,3675.0,2.72106]
[1718025042416,0.801,3675.2,3675.0,2.72106]
[1718025042795,0.10221371,3675.1,3675.0,2.72106]
[1718025043199,0.801,3675.2,3675.0,2.72106]
[1718025043516,0.10221371,3675.1,3675.0,2.72106]
[1718025043831,0.801,3675.2,3675.0,2.72106]
[1718025044123,0.10221371,3675.1,3675.0,2.72106]
[1718025044334,0.801,3675.2,3675.0,2.72106]
[1718025044629,0.10221371,3675.1,3675.0,2.72106]
[1718025048112,4.6246,3675.4,3675.3,2.72086]
[1718025048286,4.72697282,3675.4,3675.3,2.72086]
[1718025049426,12.88947282,3675.4,3675.3,2.72086]
[1718025060394,12.88947282,3675.4,3675.0,2.72102]
[1718025060633,0.801,3675.2,3675.0,2.72102]
[1718025060991,0.1019513,3675.1,3675.0,2.72102]
[1718025062540,8.9635,3675.4,3675.3,2.72086]
[1718025062744,9.0654513,3675.4,3675.3,2.72086]
[1718025062910,8.2644513,3675.4,3675.3,2.72086]
[1718025063112,8.2644513,3675.4,3675.3,5.44172]
[1718025065746,8.1625,3675.4,3675.3,5.44172]
[1718025065947,8.26471835,3675.4,3675.3,5.44172]
[1718025069449,8.26471835,3675.4,3675.3,2.72086]
[1718025075457,12.25691835,3675.4,3674.7,0.85402531]
[1718025075758,0.801,3674.9,3674.7,2.72124]
[1718025076043,8.1625,3674.8,3674.7,2.72124]
[1718025076432,8.26456495,3674.8,3674.7,2.72124]
[1718025077426,8.26456495,3674.8,3674.5,7.28]
[1718025077631,0.801,3674.6,3674.4,2.72148]
[1718025078153,0.10190015,3674.5,3674.4,2.72148]
[1718025079713,8.26440015,3674.5,3674.4,2.72148]
[1718025081662,8.26440015,3674.5,3674.4,7.08298]
[1718025082186,8.1625,3674.5,3674.4,7.08298]
[1718025082485,8.26389437,3674.5,3674.4,7.08298]
[1718025083832,8.26389437,3674.5,3674.4,2.72148]
[1718025090793,9.06489437,3674.5,3674.4,2.72148]
[1718025094012,8.26389437,3674.5,3674.4,2.72148]
[1718025095297,8.26389437,3674.5,3674.4,5.44301]
[1718025096188,8.1625,3674.5,3674.4,5.44301]
[1718025096394,8.26410584,3674.5,3674.4,5.44301]
[1718025104433,8.26410584,3674.5,3674.4,2.72148]
[1718025109131,12.34680584,3674.5,3674.4,2.72148]
[1718025117119,13.14780584,3674.5,3674.1,2.72168]
[1718025117448,0.801,3674.2,3674.1,2.72168]
[1718025117647,13.0703,3674.2,3674.1,2.72168]
[1718025117815,13.17161599,3674.2,3674.1,2.72168]
[1718025118516,13.17161599,3674.2,3674.0,0.07549008]
[1718025126723,13.17161599,3674.2,3674.0,2.79731008]
[1718025131749,13.17161599,3674.2,3674.0,0.07549008]
[1718025135159,4.0071,3674.1,3674.0,0.07549008]
[1718025135362,12.1696,3674.1,3674.0,0.07549008]
[1718025135526,12.27025085,3674.1,3674.0,0.07549008]
[1718025138170,13.07125085,3674.1,3674.0,0.07549008]
[1718025144544,12.27025085,3674.1,3674.0,0.07549008]
[1718025144744,13.07125085,3674.1,3674.0,0.07549008]
[1718025147388,9.06415085,3674.1,3674.0,0.07549008]
[1718025155567,11.78590085,3674.1,3674.0,0.07549008]
[1718025156965,15.82670085,3674.1,3674.0,0.07549008]
[1718025157762,4.0532,3673.5,3673.2,7.3429765]
[1718025157964,0.801,3673.3,3673.2,0.0629765]
[1718025158263,8.9635,3673.3,3673.2,0.0629765]
[1718025158582,9.06054056,3673.3,3673.2,0.0629765]
[1718025159086,9.06054056,3673.3,3672.9,0.85402531]
[1718025159408,0.801,3673.0,3672.8,0.85402531]
[1718025159697,9.06000509,3672.9,3672.8,0.85402531]
[1718025160798,9.06000509,3672.9,3672.7,8.13402531]
[1718025161629,9.06000509,3672.9,3672.7,7.28]
[1718025161813,9.06000509,3672.9,3672.5,3.57689531]
[1718025161991,0.801,3672.6,3672.5,3.57689531]
[1718025162313,8.9635,3672.6,3672.5,3.57689531]
[1718025162490,9.05993672,3672.6,3672.5,3.57689531]
[1718025165709,9.05993672,3672.6,3672.5,2.72287]
[1718025166700,8.9635,3672.6,3672.5,2.72287]
[1718025166900,9.0598285,3672.6,3672.5,2.72287]
[1718025173326,8.2588285,3672.6,3672.5,2.72287]
[1718025180851,9.0598285,3672.6,3672.5,2.72287]
[1718025181530,9.0598285,3672.6,3672.4,0.07552297]
[1718025184817,11.7826985,3672.6,3672.0,2.72324]
[1718025185047,0.801,3672.1,3672.0,2.72324]
[1718025185352,9.05899845,3672.1,3672.0,2.72324]
[1718025186117,9.05899845,3672.1,3671.7,2.72347]
[1718025186354,0.801,3671.8,3671.7,2.72347]
[1718025186552,8.9635,3671.8,3671.7,2.72347]
[1718025186847,9.05900415,3671.8,3671.7,2.72347]
[1718025187227,9.05900415,3671.8,3671.4,2.72372]
[1718025187433,0.801,3671.5,3671.4,2.72372]
[1718025187722,9.05885595,3671.5,3671.4,2.72372]
[1718025188129,8.25785595,3671.5,3671.4,2.72372]
[1718025188330,9.05885595,3671.5,3671.4,2.72372]
[1718025190828,8.25785595,3671.5,3671.4,2.72372]
[1718025191043,8.25785595,3671.5,3671.4,7.11692]
[1718025193944,8.25785595,3671.5,3671.4,9.84067]
[1718025194150,8.25785595,3671.5,3671.4,12.90367738]
[1718025199083,8.25785595,3671.5,3671.4,10.17992738]
[1718025200939,8.25785595,3671.5,3671.4,5.78672738]
[1718025206339,8.25785595,3671.5,3671.4,2.78672738]
[1718025208870,9.05885595,3671.5,3671.4,2.78672738]
[1718025209544,9.05885595,3671.5,3671.4,2.72372]
[1718025211083,9.05885595,3671.5,3671.2,0.07136501]
[1718025211287,0.801,3671.3,3671.2,0.07136501]
[1718025211577,9.0561584,3671.3,3671.2,0.07136501]
[1718025211752,13.4704584,3671.3,3671.2,0.07136501]
[1718025214356,13.4704584,3671.3,3670.7,2.5]
[1718025214552,0.801,3670.8,3670.7,2.5]
[1718025214753,8.9635,3670.8,3670.7,2.5]
[1718025214952,13.24272713,3670.8,3670.7,2.5]
[1718025222260,9.05602713,3670.8,3670.7,2.5]
[1718025223189,8.25502713,3670.8,3670.7,2.5]
[1718025223488,9.05602713,3670.8,3670.5,2.72438]
[1718025223999,8.25502713,3670.8,3670.5,2.72438]
[1718025224163,0.801,3670.6,3670.5,2.72438]
[1718025224369,8.9635,3670.6,3670.5,2.72438]
[1718025224564,9.0556846,3670.6,3670.5,2.72438]
[1718025225551,8.2546846,3670.6,3670.5,2.72438]
[1718025244314,8.2546846,3670.6,3670.5,7.72668]
[1718025244837,8.1625,3670.6,3670.5,7.72668]
[1718025245145,8.25471883,3670.6,3670.5,7.72668]
[1718025245349,8.25471883,3670.6,3670.5,10.4511]
[1718025246283,8.25471883,3670.6,3670.3,2.72456]
[1718025246781,8.1625,3670.6,3670.3,2.72456]
[1718025247187,0.0888517,3670.5,3670.3,2.72456]
[1718025247352,8.1625,3670.4,3670.3,2.72456]
[1718025247785,8.25134596,3670.4,3670.3,2.72456]
[1718025248582,8.25134596,3670.4,3670.3,6.73026]
[1718025248970,8.1625,3670.4,3670.3,6.73026]
[1718025249148,8.25134596,3670.4,3670.3,6.73026]
[1718025249346,8.25134596,3670.4,3670.3,9.45483]
[1718025251282,8.25134596,3670.4,3670.3,10.30885531]
[1718025251783,8.1625,3670.4,3670.3,10.28085531]
[1718025252009,8.25108268,3670.4,3670.3,10.28085531]
[1718025253269,8.25108268,3670.4,3670.3,9.42683]
[1718025253503,8.25108268,3670.4,3670.3,10.28313978]
[1718025254064,8.25108268,3670.4,3670.3,9.42683]
[1718025255282,8.25108268,3670.4,3670.3,12.1514]
[1718025255592,8.25108268,3670.4,3670.3,14.09366124]
[1718025255990,8.25108268,3670.4,3670.3,12.9524]
[1718025256195,8.1625,3670.4,3670.3,12.9524]
[1718025256407,8.1625,3670.4,3670.3,14.09366124]
[1718025256706,8.25107124,3670.4,3670.3,14.09366124]
[1718025260414,8.25107124,3670.4,3670.3,13.29266124]
[1718025260584,8.25107124,3670.4,3670.3,8.1457]
[1718025261078,8.25107124,3670.4,3670.3,9.28696124]
[1718025261612,8.25107124,3670.4,3670.3,8.1457]
[1718025263139,8.25107124,3670.4,3670.3,9.28696124]
[1718025263331,8.25107124,3670.4,3670.3,8.1457]
[1718025263620,8.25107124,3670.4,3670.3,9.28696124]
[1718025263826,8.25107124,3670.4,3670.3,8.1457]
[1718025264680,8.1625,3670.4,3670.3,8.1457]
[1718025265084,8.25040829,3670.4,3670.3,8.1457]
[1718025265653,8.25040829,3670.4,3670.3,6.27788451]
[1718025265789,8.25040829,3670.4,3670.3,5.42113]
[1718025266623,8.25040829,3670.4,3670.3,6.27788451]
[1718025267027,8.25040829,3670.4,3670.3,5.42113]
[1718025269433,8.25040829,3670.4,3670.3,2.69656]
[1718025275291,12.42510829,3670.4,3670.3,2.69656]
[1718025300374,12.42510829,3670.4,3669.9,0.07139029]
[1718025300375,12.42510829,3670.4,3670.0,2.72473]
[1718025300674,0.801,3670.2,3670.0,2.72473]
[1718025300828,8.1625,3670.1,3670.0,2.72473]
[1718025301250,12.2667,3670.1,3670.0,2.72473]
[1718025301435,12.35063964,3670.1,3670.0,2.72473]
[1718025301753,8.24643964,3670.1,3670.0,2.72473]
[1718025306696,8.24643964,3670.1,3670.0,7.15543]